[Event "Live Chess"]
[Site "Chess.com"]
[Date "2024.06.01"]
[Round "-"]
[White "anatoliy10912"]
[Black "vincents82"]
[Result "1-0"]
[WhiteElo "1764"]
[BlackElo "2046"]
[TimeControl "300"]
[EndTime "15:19:38 PDT"]
[Termination "anatoliy10912 won by resignation"]

1. e4 {[%clk 0:04:57.9]} 1... d5 {[%clk 0:04:59]} 2. e5 {[%clk 0:04:54.9]} 2...
c5 {[%clk 0:04:54.5]} 3. c3 {[%clk 0:04:47.3]} 3... Nc6 {[%clk 0:04:53.2]} 4.
Nf3 {[%clk 0:04:44.9]} 4... Bg4 {[%clk 0:04:51.7]} 5. d4 {[%clk 0:04:37.6]} 5...
Qb6 {[%clk 0:04:46.7]} 6. dxc5 {[%clk 0:04:19.2]} 6... Qxc5 {[%clk 0:04:45.5]}
7. Be3 {[%clk 0:04:08.5]} 7... Qa5 {[%clk 0:04:37]} 8. Qb3 {[%clk 0:03:41.7]}
8... Bxf3 {[%clk 0:04:31.7]} 9. Qxb7 {[%clk 0:03:38]} 9... d4 {[%clk 0:03:56.9]}
10. gxf3 {[%clk 0:03:19.5]} 10... dxe3 {[%clk 0:03:51.4]} 11. Qxc6+ {[%clk
0:03:05.7]} 11... Kd8 {[%clk 0:03:47.5]} 12. Qxa8+ {[%clk 0:03:02.6]} 12... Kc7
{[%clk 0:03:46.7]} 13. fxe3 {[%clk 0:02:44.6]} 13... Nh6 {[%clk 0:03:45.2]} 14.
Nd2 {[%clk 0:02:32.6]} 1-0

[Event "Live Chess"]
[Site "Chess.com"]
[Date "2024.06.01"]
[Round "-"]
[White "NeilDruggan73"]
[Black "dmitro74"]
[Result "1-0"]
[WhiteElo "1747"]
[BlackElo "1704"]
[TimeControl "300"]
[EndTime "15:19:41 PDT"]
[Termination "NeilDruggan73 won on time"]

1. d4 {[%clk 0:04:56.7]} 1... d5 {[%clk 0:04:58.8]} 2. Bg5 {[%clk 0:04:54.3]}
2... h6 {[%clk 0:04:55.6]} 3. Bh4 {[%clk 0:04:52.2]} 3... g5 {[%clk 0:04:52.8]}
4. Bg3 {[%clk 0:04:51]} 4... Bg7 {[%clk 0:04:50.3]} 5. e3 {[%clk 0:04:49.9]}
5... Nf6 {[%clk 0:04:47.1]} 6. Bd3 {[%clk 0:04:48.5]} 6... Bg4 {[%clk
0:04:36.3]} 7. f3 {[%clk 0:04:41.1]} 7... Bh5 {[%clk 0:04:34.7]} 8. Nc3 {[%clk
0:04:36.8]} 8... Bg6 {[%clk 0:04:30.3]} 9. Bxg6 {[%clk 0:04:33.2]} 9... fxg6
{[%clk 0:04:28.3]} 10. Qd3 {[%clk 0:04:32.9]} 10... Kf7 {[%clk 0:04:22.4]} 11.
O-O-O {[%clk 0:04:30]} 11... Nbd7 {[%clk 0:04:13]} 12. f4 {[%clk 0:04:23.6]}
12... g4 {[%clk 0:04:08]} 13. h3 {[%clk 0:04:19.5]} 13... gxh3 {[%clk
0:03:47.2]} 14. gxh3 {[%clk 0:04:14.1]} 14... c5 {[%clk 0:03:46]} 15. h4 {[%clk
0:04:11.5]} 15... c4 {[%clk 0:03:44]} 16. Qe2 {[%clk 0:04:07.5]} 16... b5 {[%clk
0:03:42]} 17. f5 {[%clk 0:03:46.2]} 17... g5 {[%clk 0:03:31.1]} 18. hxg5 {[%clk
0:03:19.3]} 18... hxg5 {[%clk 0:03:29.7]} 19. Nf3 {[%clk 0:03:14.6]} 19... Bh6
{[%clk 0:03:14.1]} 20. Rxh6 {[%clk 0:02:52.2]} 20... Rxh6 {[%clk 0:03:11.6]} 21.
Nxg5+ {[%clk 0:02:50.1]} 21... Ke8 {[%clk 0:03:08.4]} 22. Bf4 {[%clk 0:02:39.1]}
22... Qa5 {[%clk 0:02:53.5]} 23. Ne6 {[%clk 0:02:32.5]} 23... Rh7 {[%clk
0:02:49.5]} 24. Nc7+ {[%clk 0:02:28.7]} 24... Kf7 {[%clk 0:02:39.5]} 25. Nxa8
{[%clk 0:02:12]} 25... b4 {[%clk 0:02:38.1]} 26. Nb1 {[%clk 0:02:07.2]} 26...
Qxa2 {[%clk 0:02:33.6]} 27. c3 {[%clk 0:02:00.5]} 27... bxc3 {[%clk 0:02:10.1]}
28. Nxc3 {[%clk 0:01:57.4]} 28... Qb3 {[%clk 0:02:02.9]} 29. Nc7 {[%clk
0:01:47.1]} 29... Ne4 {[%clk 0:01:57.3]} 30. N7xd5 {[%clk 0:01:37.6]} 30... Nxc3
{[%clk 0:01:42.6]} 31. Nxc3 {[%clk 0:01:35.5]} 31... a5 {[%clk 0:01:35.2]} 32.
Qc2 {[%clk 0:01:24.8]} 32... Qb6 {[%clk 0:01:25.2]} 33. Rg1 {[%clk 0:01:12]}
33... Nf6 {[%clk 0:01:17.5]} 34. Be5 {[%clk 0:01:03.5]} 34... Qc6 {[%clk
0:01:06.7]} 35. e4 {[%clk 0:00:57.5]} 35... a4 {[%clk 0:00:53.6]} 36. Qxa4
{[%clk 0:00:47]} 36... Qxa4 {[%clk 0:00:48.2]} 37. Nxa4 {[%clk 0:00:45.4]} 37...
Nxe4 {[%clk 0:00:46.7]} 38. Nc5 {[%clk 0:00:41.4]} 38... Nf2 {[%clk 0:00:36.8]}
39. Kc2 {[%clk 0:00:32]} 39... Rh3 {[%clk 0:00:23.3]} 40. Rg7+ {[%clk
0:00:29.3]} 40... Ke8 {[%clk 0:00:21.3]} 41. Ne6 {[%clk 0:00:15.4]} 41... Rf3
{[%clk 0:00:18]} 42. Rg8+ {[%clk 0:00:13.4]} 42... Kd7 {[%clk 0:00:15.2]} 43.
Rd8+ {[%clk 0:00:12.8]} 43... Kc6 {[%clk 0:00:14.1]} 44. d5+ {[%clk 0:00:10.8]}
44... Kb5 {[%clk 0:00:11.1]} 45. Nd4+ {[%clk 0:00:09.6]} 45... Kc5 {[%clk
0:00:09.1]} 46. Nxf3 {[%clk 0:00:09]} 46... Ne4 {[%clk 0:00:07.9]} 47. f6 {[%clk
0:00:08.5]} 47... exf6 {[%clk 0:00:06.5]} 48. Bxf6 {[%clk 0:00:04.2]} 48... Nxf6
{[%clk 0:00:05.5]} 49. Ne5 {[%clk 0:00:03.9]} 49... Nxd5 {[%clk 0:00:03.7]} 50.
Nd7+ {[%clk 0:00:03.6]} 50... Kc6 {[%clk 0:00:01.9]} 51. Nf6 {[%clk 0:00:03.3]}
51... Nxf6 {[%clk 0:00:00.4]} 52. Rf8 {[%clk 0:00:03]} 1-0

[Event "Live Chess"]
[Site "Chess.com"]
[Date "2024.06.01"]
[Round "-"]
[White "Berdgross"]
[Black "Mikhail_Golubev"]
[Result "0-1"]
[WhiteElo "581"]
[BlackElo "2584"]
[TimeControl "300"]
[EndTime "15:19:42 PDT"]
[Termination "Mikhail_Golubev won by resignation"]

1. d4 {[%clk 0:04:56.4]} 1... Nf6 {[%clk 0:04:58]} 2. e3 {[%clk 0:04:56.3]} 2...
g6 {[%clk 0:04:53.9]} 3. Nf3 {[%clk 0:04:55]} 3... b6 {[%clk 0:04:52.6]} 4. Nc3
{[%clk 0:04:51.9]} 4... Bb7 {[%clk 0:04:50.7]} 5. Be2 {[%clk 0:04:48.4]} 5...
Bg7 {[%clk 0:04:48.9]} 6. h3 {[%clk 0:04:46.7]} 6... O-O {[%clk 0:04:47.1]} 7.
O-O {[%clk 0:04:44.2]} 7... d6 {[%clk 0:04:40.4]} 8. a3 {[%clk 0:04:41.3]} 8...
Nbd7 {[%clk 0:04:39.1]} 9. Re1 {[%clk 0:04:37]} 9... e5 {[%clk 0:04:35.8]} 10.
d5 {[%clk 0:04:33.3]} 10... e4 {[%clk 0:04:28.6]} 11. Nd4 {[%clk 0:04:22]} 11...
Nxd5 {[%clk 0:04:23.6]} 12. Nxd5 {[%clk 0:04:20.1]} 12... Bxd5 {[%clk
0:04:22.1]} 13. Nb5 {[%clk 0:04:07.1]} 13... Bb7 {[%clk 0:04:15]} 14. Bg4 {[%clk
0:03:59.9]} 14... Ne5 {[%clk 0:04:12.3]} 15. c3 {[%clk 0:03:45.2]} 15... a6
{[%clk 0:04:01.5]} 16. Nd4 {[%clk 0:03:33.6]} 16... c5 {[%clk 0:04:00.1]} 17.
Nc2 {[%clk 0:03:24.5]} 17... d5 {[%clk 0:03:50.1]} 18. b3 {[%clk 0:03:12.8]}
18... Nd3 {[%clk 0:03:45.7]} 19. Re2 {[%clk 0:03:05.3]} 19... f5 {[%clk
0:03:41.3]} 20. Bh5 {[%clk 0:02:38.2]} 20... gxh5 {[%clk 0:03:38.7]} 21. Rd2
{[%clk 0:02:28.9]} 21... f4 {[%clk 0:03:20.9]} 22. f3 {[%clk 0:02:23.9]} 22...
fxe3 {[%clk 0:03:15.6]} 23. Rxd3 {[%clk 0:02:15.3]} 23... exd3 {[%clk
0:03:11.9]} 24. Qxd3 {[%clk 0:02:10.4]} 24... d4 {[%clk 0:03:04.6]} 25. cxd4
{[%clk 0:02:04.7]} 25... Bxd4 {[%clk 0:03:01.3]} 26. Nxd4 {[%clk 0:02:01.9]}
26... Qxd4 {[%clk 0:02:58]} 27. Qxd4 {[%clk 0:02:00.5]} 27... cxd4 {[%clk
0:02:57.3]} 28. Bb2 {[%clk 0:01:48.1]} 28... d3 {[%clk 0:02:55.1]} 29. Kf1
{[%clk 0:01:38.5]} 29... Rac8 {[%clk 0:02:51.5]} 30. Bd4 {[%clk 0:01:32.8]}
30... Rfe8 {[%clk 0:02:50.1]} 31. Bxb6 {[%clk 0:01:23.6]} 31... d2 {[%clk
0:02:43.7]} 32. Ke2 {[%clk 0:01:17]} 32... Rc1 {[%clk 0:02:41.6]} 33. Bxe3
{[%clk 0:00:51]} 33... d1=Q+ {[%clk 0:02:35.9]} 0-1

[Event "Live Chess"]
[Site "Chess.com"]
[Date "2024.06.01"]
[Round "-"]
[White "upoe610"]
[Black "Cruiseylee78"]
[Result "1-0"]
[WhiteElo "2204"]
[BlackElo "1694"]
[TimeControl "300"]
[EndTime "15:19:44 PDT"]
[Termination "upoe610 won by resignation"]

1. c4 {[%clk 0:04:57.2]} 1... d6 {[%clk 0:04:59.4]} 2. g3 {[%clk 0:04:56.1]}
2... Nd7 {[%clk 0:04:59.3]} 3. Bg2 {[%clk 0:04:55.3]} 3... e5 {[%clk 0:04:59.1]}
4. Nc3 {[%clk 0:04:51]} 4... c6 {[%clk 0:04:59]} 5. Nf3 {[%clk 0:04:46.4]} 5...
h6 {[%clk 0:04:57.5]} 6. d4 {[%clk 0:04:44.2]} 6... Qc7 {[%clk 0:04:55.3]} 7. d5
{[%clk 0:04:38.6]} 7... Be7 {[%clk 0:04:53.2]} 8. b3 {[%clk 0:04:33.9]} 8...
Ngf6 {[%clk 0:04:52]} 9. O-O {[%clk 0:04:31.2]} 9... g5 {[%clk 0:04:50.1]} 10.
Qc2 {[%clk 0:04:28.4]} 10... Rg8 {[%clk 0:04:48.5]} 11. Nd2 {[%clk 0:04:27.2]}
11... h5 {[%clk 0:04:45.5]} 12. Nde4 {[%clk 0:04:25.7]} 12... h4 {[%clk
0:04:41.5]} 13. Nxf6+ {[%clk 0:04:24.6]} 13... Nxf6 {[%clk 0:04:40.5]} 14. Ne4
{[%clk 0:04:23.9]} 14... hxg3 {[%clk 0:04:38.5]} 15. hxg3 {[%clk 0:04:22.5]}
15... Nxe4 {[%clk 0:04:35.4]} 16. Bxe4 {[%clk 0:04:20.2]} 16... f5 {[%clk
0:04:34.8]} 17. Bxf5 {[%clk 0:04:17.8]} 17... Bxf5 {[%clk 0:04:33.2]} 18. Qxf5
{[%clk 0:04:16.5]} 18... Rh8 {[%clk 0:04:24.1]} 19. Kg2 {[%clk 0:04:12.2]} 19...
Qd7 {[%clk 0:04:17.5]} 20. Qxd7+ {[%clk 0:04:04.2]} 20... Kxd7 {[%clk
0:04:17.4]} 21. dxc6+ {[%clk 0:04:04.1]} 21... bxc6 {[%clk 0:04:15.6]} 22. Be3
{[%clk 0:04:04]} 22... c5 {[%clk 0:04:08.3]} 23. Rad1 {[%clk 0:04:01.5]} 23...
Kc7 {[%clk 0:04:04.6]} 24. Rh1 {[%clk 0:03:58.3]} 24... Rxh1 {[%clk 0:03:51.3]}
25. Rxh1 {[%clk 0:03:56.2]} 25... g4 {[%clk 0:03:39.5]} 26. Rh7 {[%clk
0:03:54.2]} 26... Re8 {[%clk 0:03:38]} 27. Bg5 {[%clk 0:03:52.7]} 27... Kd7
{[%clk 0:03:37]} 28. f3 {[%clk 0:03:50.8]} 28... gxf3+ {[%clk 0:03:34.9]} 29.
Kxf3 {[%clk 0:03:50.1]} 29... a5 {[%clk 0:03:33.7]} 30. Ke4 {[%clk 0:03:47.5]}
30... a4 {[%clk 0:03:32.8]} 31. Bxe7 {[%clk 0:03:42.7]} 31... Rxe7 {[%clk
0:03:31.7]} 32. Rxe7+ {[%clk 0:03:41.3]} 32... Kxe7 {[%clk 0:03:31.6]} 33. Kd5
{[%clk 0:03:40.5]} 33... axb3 {[%clk 0:03:30.6]} 34. axb3 {[%clk 0:03:39.2]}
34... Kd7 {[%clk 0:03:29.2]} 35. g4 {[%clk 0:03:37.6]} 35... Ke7 {[%clk
0:03:27.8]} 36. e4 {[%clk 0:03:36.3]} 36... Kf6 {[%clk 0:03:22.1]} 37. Kxd6
{[%clk 0:03:34.7]} 1-0

[Event "Live Chess"]
[Site "Chess.com"]
[Date "2024.06.01"]
[Round "-"]
[White "hapehansen"]
[Black "gobbles19"]
[Result "0-1"]
[WhiteElo "2260"]
[BlackElo "2290"]
[TimeControl "300"]
[EndTime "15:19:48 PDT"]
[Termination "gobbles19 won on time"]

1. Nf3 {[%clk 0:04:56.3]} 1... c5 {[%clk 0:04:57.7]} 2. c4 {[%clk 0:04:54.7]}
2... Nf6 {[%clk 0:04:54.6]} 3. Nc3 {[%clk 0:04:53.7]} 3... e6 {[%clk 0:04:50.8]}
4. g3 {[%clk 0:04:50.9]} 4... d5 {[%clk 0:04:48]} 5. d4 {[%clk 0:04:47.1]} 5...
cxd4 {[%clk 0:04:45.3]} 6. Nxd4 {[%clk 0:04:44.1]} 6... e5 {[%clk 0:04:44]} 7.
Nf3 {[%clk 0:04:40.1]} 7... d4 {[%clk 0:04:43.4]} 8. Nb5 {[%clk 0:04:36.2]} 8...
a6 {[%clk 0:04:37.9]} 9. Na3 {[%clk 0:04:33.4]} 9... Nc6 {[%clk 0:04:28.8]} 10.
Nc2 {[%clk 0:04:28.1]} 10... Bc5 {[%clk 0:04:21.6]} 11. Bg2 {[%clk 0:04:10.9]}
11... O-O {[%clk 0:04:19.7]} 12. O-O {[%clk 0:04:06.8]} 12... e4 {[%clk
0:04:13.1]} 13. Ng5 {[%clk 0:03:54.9]} 13... Re8 {[%clk 0:04:04.4]} 14. Bd2
{[%clk 0:03:25.6]} 14... Bg4 {[%clk 0:03:52.6]} 15. h3 {[%clk 0:03:13]} 15...
Bf5 {[%clk 0:03:51.3]} 16. b4 {[%clk 0:03:01.1]} 16... Bb6 {[%clk 0:03:48.1]}
17. c5 {[%clk 0:02:53.1]} 17... Bc7 {[%clk 0:03:45.6]} 18. h4 {[%clk 0:02:06.8]}
18... Qd7 {[%clk 0:03:43]} 19. Kh2 {[%clk 0:01:43.8]} 19... Ng4+ {[%clk
0:03:31.7]} 20. Kg1 {[%clk 0:01:40.8]} 20... Rad8 {[%clk 0:03:16.2]} 21. Nh3
{[%clk 0:01:34.9]} 21... e3 {[%clk 0:03:10.2]} 22. Be1 {[%clk 0:01:29.7]} 22...
exf2+ {[%clk 0:03:06.1]} 23. Bxf2 {[%clk 0:01:26.2]} 23... Nxf2 {[%clk
0:03:04.7]} 24. Nxf2 {[%clk 0:01:24.1]} 24... Bxg3 {[%clk 0:03:02.2]} 25. a4
{[%clk 0:01:16.3]} 25... Bxc2 {[%clk 0:02:40.4]} 26. Qxc2 {[%clk 0:01:13]} 26...
Nxb4 {[%clk 0:02:38.3]} 27. Qb3 {[%clk 0:01:09.9]} 27... Bxf2+ {[%clk
0:02:25.9]} 28. Rxf2 {[%clk 0:01:07.9]} 28... Nd5 {[%clk 0:02:24.2]} 29. Raf1
{[%clk 0:01:03.9]} 29... Re3 {[%clk 0:02:10.9]} 30. Qc4 {[%clk 0:00:57.2]} 30...
Nf6 {[%clk 0:02:05.2]} 31. Rf4 {[%clk 0:00:49.2]} 31... Rc3 {[%clk 0:01:53.4]}
32. Qb4 {[%clk 0:00:46.4]} 32... Qe7 {[%clk 0:01:37.5]} 33. Qxb7 {[%clk
0:00:41.6]} 33... Qxb7 {[%clk 0:01:28.6]} 34. Bxb7 {[%clk 0:00:41.5]} 34... Rxc5
{[%clk 0:01:27.6]} 35. Bxa6 {[%clk 0:00:38.5]} 35... Ra8 {[%clk 0:01:11]} 36.
Rxd4 {[%clk 0:00:35.1]} 36... h6 {[%clk 0:01:02.7]} 37. Bb5 {[%clk 0:00:32.9]}
37... Rac8 {[%clk 0:00:50.5]} 38. Kg2 {[%clk 0:00:26.7]} 38... Rc3 {[%clk
0:00:40.3]} 39. Rf3 {[%clk 0:00:24.8]} 39... Rc2 {[%clk 0:00:36.4]} 40. Kf2
{[%clk 0:00:22.5]} 40... R8c5 {[%clk 0:00:33.5]} 41. Bd3 {[%clk 0:00:20.3]}
41... Rc8 {[%clk 0:00:19]} 42. Rf5 {[%clk 0:00:17.1]} 42... R2c7 {[%clk
0:00:17.6]} 43. a5 {[%clk 0:00:15.3]} 43... Nd7 {[%clk 0:00:16.1]} 44. a6 {[%clk
0:00:10.6]} 44... Nc5 {[%clk 0:00:15.5]} 45. Rfd5 {[%clk 0:00:07.9]} 45... g6
{[%clk 0:00:14.1]} 46. Rd8+ {[%clk 0:00:06.1]} 46... Rxd8 {[%clk 0:00:13.6]} 47.
Rxd8+ {[%clk 0:00:05.3]} 47... Kg7 {[%clk 0:00:13.5]} 48. Rd5 {[%clk 0:00:03.9]}
48... Ne6 {[%clk 0:00:12.1]} 49. Ra5 {[%clk 0:00:01.8]} 49... Ra7 {[%clk
0:00:11.3]} 50. Be4 {[%clk 0:00:01.3]} 50... Nc7 {[%clk 0:00:10.7]} 51. Bb7
{[%clk 0:00:00.3]} 51... Kf6 {[%clk 0:00:10.2]} 0-1

[Event "Live Chess"]
[Site "Chess.com"]
[Date "2024.06.01"]
[Round "-"]
[White "NottheBishopSacrifice"]
[Black "Queensandpawns"]
[Result "1-0"]
[WhiteElo "2284"]
[BlackElo "2357"]
[TimeControl "300"]
[EndTime "15:19:51 PDT"]
[Termination "NottheBishopSacrifice won by resignation"]

1. d4 {[%clk 0:04:57.4]} 1... c5 {[%clk 0:04:53.8]} 2. d5 {[%clk 0:04:56.2]}
2... d6 {[%clk 0:04:53.1]} 3. e4 {[%clk 0:04:54.2]} 3... Nf6 {[%clk 0:04:53]} 4.
Nc3 {[%clk 0:04:52.7]} 4... g6 {[%clk 0:04:52.9]} 5. Bb5+ {[%clk 0:04:48.8]}
5... Bd7 {[%clk 0:04:51.4]} 6. a4 {[%clk 0:04:40.9]} 6... a6 {[%clk 0:04:49.7]}
7. Bc4 {[%clk 0:04:35.6]} 7... Bg7 {[%clk 0:04:49.6]} 8. Nf3 {[%clk 0:04:32.8]}
8... O-O {[%clk 0:04:49.2]} 9. O-O {[%clk 0:04:31]} 9... e5 {[%clk 0:04:27.5]}
10. dxe6 {[%clk 0:04:21.5]} 10... Bxe6 {[%clk 0:04:25.4]} 11. Bxe6 {[%clk
0:04:13.4]} 11... fxe6 {[%clk 0:04:25.3]} 12. e5 {[%clk 0:04:12.5]} 12... dxe5
{[%clk 0:04:22.6]} 13. Qe2 {[%clk 0:03:45.3]} 13... Nc6 {[%clk 0:04:20.1]} 14.
Nxe5 {[%clk 0:03:38.1]} 14... Nd4 {[%clk 0:04:19.2]} 15. Qc4 {[%clk 0:03:36.3]}
15... Qc7 {[%clk 0:04:17]} 16. f4 {[%clk 0:03:23.7]} 16... b5 {[%clk 0:04:15.2]}
17. Qd3 {[%clk 0:03:17.2]} 17... b4 {[%clk 0:04:13.2]} 18. Ne4 {[%clk
0:03:14.8]} 18... Nxe4 {[%clk 0:04:07.6]} 19. Qxe4 {[%clk 0:03:13.3]} 19... Bxe5
{[%clk 0:04:07.2]} 20. fxe5 {[%clk 0:03:05.7]} 20... Rxf1+ {[%clk 0:04:06.5]}
21. Kxf1 {[%clk 0:03:04.8]} 21... Rf8+ {[%clk 0:04:06.3]} 22. Kg1 {[%clk
0:03:01.2]} 22... Qc6 {[%clk 0:04:05.9]} 23. Qd3 {[%clk 0:02:49.3]} 23... Qd5
{[%clk 0:03:53.8]} 24. Bh6 {[%clk 0:02:43.2]} 24... Rf5 {[%clk 0:03:44]} 25.
Qxa6 {[%clk 0:02:27.9]} 25... Nc6 {[%clk 0:03:17.7]} 26. Qa8+ {[%clk 0:02:23.6]}
26... Nd8 {[%clk 0:03:07.9]} 27. Qxd5 {[%clk 0:02:22.2]} 27... exd5 {[%clk
0:03:07.8]} 28. a5 {[%clk 0:02:17.4]} 28... Nc6 {[%clk 0:02:48.9]} 29. a6 {[%clk
0:02:16.4]} 29... Na7 {[%clk 0:02:47.4]} 30. Ra5 {[%clk 0:02:14.7]} 30... Rxe5
{[%clk 0:02:44.2]} 31. Rxc5 {[%clk 0:02:13.2]} 31... Kf7 {[%clk 0:02:43.5]} 32.
Rc7+ {[%clk 0:02:10.1]} 32... Re7 {[%clk 0:02:42.1]} 33. Rxe7+ {[%clk
0:02:09.2]} 33... Kxe7 {[%clk 0:02:42]} 34. Be3 {[%clk 0:02:08.4]} 34... Nb5
{[%clk 0:02:37.9]} 35. a7 {[%clk 0:02:06.8]} 35... Nc7 {[%clk 0:02:37.1]} 36.
Bc5+ {[%clk 0:02:03.5]} 36... Kd7 {[%clk 0:02:36.7]} 37. Bxb4 {[%clk 0:02:03.1]}
37... Kc6 {[%clk 0:02:36.2]} 38. Ba5 {[%clk 0:02:00]} 38... Na8 {[%clk
0:02:34.7]} 39. Kf2 {[%clk 0:01:59]} 39... Kb7 {[%clk 0:02:34]} 40. Ke3 {[%clk
0:01:56.6]} 40... Kxa7 {[%clk 0:02:31.3]} 41. Kd4 {[%clk 0:01:55.8]} 41... Ka6
{[%clk 0:02:30.7]} 42. b4 {[%clk 0:01:55.4]} 42... Kb5 {[%clk 0:02:28.9]} 43.
Kxd5 {[%clk 0:01:54.5]} 43... g5 {[%clk 0:02:26.4]} 44. c4+ {[%clk 0:01:54]}
44... Ka4 {[%clk 0:02:25.5]} 45. c5 {[%clk 0:01:53.5]} 45... Ka3 {[%clk
0:02:25.4]} 46. c6 {[%clk 0:01:52.7]} 46... g4 {[%clk 0:02:23.6]} 47. b5 {[%clk
0:01:51]} 47... g3 {[%clk 0:02:22.7]} 48. hxg3 {[%clk 0:01:49.4]} 48... Ka4
{[%clk 0:02:22.2]} 49. Bd8 {[%clk 0:01:30.1]} 49... Kxb5 {[%clk 0:02:19.4]} 50.
c7 {[%clk 0:01:29.5]} 50... Nb6+ {[%clk 0:02:16.3]} 51. Kd6 {[%clk 0:01:27.5]}
51... Nc8+ {[%clk 0:02:15.6]} 52. Ke6 {[%clk 0:01:22.9]} 52... Kc6 {[%clk
0:02:14.4]} 53. Kf7 {[%clk 0:01:22]} 53... Kd7 {[%clk 0:02:05.8]} 54. Kg7 {[%clk
0:01:21.4]} 54... Nd6 {[%clk 0:02:01.6]} 55. Kxh7 {[%clk 0:01:19.2]} 55... Nf5
{[%clk 0:01:58.4]} 56. g4 {[%clk 0:01:17.2]} 56... Ne3 {[%clk 0:01:58.3]} 57. g5
{[%clk 0:01:16.1]} 57... Nxg2 {[%clk 0:01:55.8]} 58. g6 {[%clk 0:01:14.4]} 1-0

[Event "Live Chess"]
[Site "Chess.com"]
[Date "2024.06.01"]
[Round "-"]
[White "lyricalschemes"]
[Black "oscalik"]
[Result "1-0"]
[WhiteElo "2450"]
[BlackElo "2312"]
[TimeControl "300"]
[EndTime "15:20:08 PDT"]
[Termination "lyricalschemes won on time"]

1. e4 {[%clk 0:04:58.5]} 1... c5 {[%clk 0:04:57.2]} 2. Nf3 {[%clk 0:04:57.3]}
2... Nf6 {[%clk 0:04:56]} 3. e5 {[%clk 0:04:54.1]} 3... Nd5 {[%clk 0:04:54.9]}
4. c3 {[%clk 0:04:53]} 4... d6 {[%clk 0:04:47.3]} 5. d4 {[%clk 0:04:51]} 5...
cxd4 {[%clk 0:04:46.6]} 6. cxd4 {[%clk 0:04:44.5]} 6... Nc6 {[%clk 0:04:40.8]}
7. Bc4 {[%clk 0:04:42.8]} 7... dxe5 {[%clk 0:04:35.9]} 8. dxe5 {[%clk
0:04:35.4]} 8... Be6 {[%clk 0:04:29]} 9. O-O {[%clk 0:04:32.9]} 9... Qa5 {[%clk
0:04:25.2]} 10. Bd2 {[%clk 0:04:29.9]} 10... Qc5 {[%clk 0:04:18.9]} 11. Bb3
{[%clk 0:04:23.6]} 11... Rd8 {[%clk 0:04:16.6]} 12. Qe2 {[%clk 0:04:21]} 12...
g6 {[%clk 0:04:10.3]} 13. Nc3 {[%clk 0:04:19.1]} 13... Bg7 {[%clk 0:04:06.3]}
14. Na4 {[%clk 0:04:08.8]} 14... Nd4 {[%clk 0:03:59]} 15. Nxc5 {[%clk
0:03:52.7]} 15... Nxe2+ {[%clk 0:03:57.5]} 16. Kh1 {[%clk 0:03:52.3]} 16... Bg4
{[%clk 0:03:36.5]} 17. Nxb7 {[%clk 0:03:43.3]} 17... Bxf3 {[%clk 0:03:04.9]} 18.
gxf3 {[%clk 0:03:39.6]} 18... Rd7 {[%clk 0:02:52.6]} 19. Ba4 {[%clk 0:03:34.4]}
19... Nb6 {[%clk 0:02:38]} 20. Bxd7+ {[%clk 0:03:26.3]} 20... Nxd7 {[%clk
0:02:37.9]} 21. Rfe1 {[%clk 0:03:21.7]} 21... Nd4 {[%clk 0:02:35.3]} 22. Rac1
{[%clk 0:03:06.3]} 22... O-O {[%clk 0:02:32.7]} 23. Kg2 {[%clk 0:03:01.6]} 23...
Nxe5 {[%clk 0:02:26.9]} 24. Re3 {[%clk 0:02:50.6]} 24... Rb8 {[%clk 0:02:08.3]}
25. Rc7 {[%clk 0:02:23.1]} 25... f6 {[%clk 0:01:22.1]} 26. Bc3 {[%clk
0:02:15.5]} 26... Nf5 {[%clk 0:01:14.7]} 27. Re1 {[%clk 0:02:06.2]} 27... Nd3
{[%clk 0:01:06.1]} 28. Rd1 {[%clk 0:02:00.3]} 28... Nf4+ {[%clk 0:01:02.4]} 29.
Kf1 {[%clk 0:01:53.9]} 29... Ne6 {[%clk 0:00:50.5]} 30. Rcd7 {[%clk 0:01:51.8]}
30... Kf7 {[%clk 0:00:45.5]} 31. Na5 {[%clk 0:01:43.7]} 31... a6 {[%clk
0:00:25.1]} 32. Nc6 {[%clk 0:01:39.6]} 32... Rb6 {[%clk 0:00:24.2]} 33. Nb4
{[%clk 0:01:36.6]} 33... Nf4 {[%clk 0:00:20.1]} 34. Nd5 {[%clk 0:01:34.8]} 34...
Nxd5 {[%clk 0:00:18.3]} 35. R7xd5 {[%clk 0:01:34.3]} 35... g5 {[%clk 0:00:16.2]}
36. Rxf5 {[%clk 0:01:32.7]} 36... Kg6 {[%clk 0:00:15.4]} 37. Rc5 {[%clk
0:01:30.9]} 37... h5 {[%clk 0:00:14.6]} 38. Rc4 {[%clk 0:01:27.3]} 38... h4
{[%clk 0:00:13.5]} 39. Rb4 {[%clk 0:01:26.5]} 39... Rc6 {[%clk 0:00:11.9]} 40.
Rb7 {[%clk 0:01:24.3]} 40... h3 {[%clk 0:00:10.6]} 41. Rxe7 {[%clk 0:01:22.3]}
41... Bf8 {[%clk 0:00:09.3]} 42. Re8 {[%clk 0:01:20.5]} 42... Bc5 {[%clk
0:00:08.3]} 43. Rg8+ {[%clk 0:01:17.1]} 43... Kf5 {[%clk 0:00:07.1]} 44. Rgd8
{[%clk 0:01:13.3]} 44... Rb6 {[%clk 0:00:05.3]} 45. R8d5+ {[%clk 0:01:12.7]}
45... Kf4 {[%clk 0:00:02.2]} 46. Rxc5 {[%clk 0:01:11.2]} 46... a5 {[%clk
0:00:01.8]} 47. Rd4+ {[%clk 0:01:08.5]} 1-0